[Event "Fredericia WIM 2022"]
[Site "Fredericia"]
[Date "2022.05.29"]
[Round "9.3"]
[White "Goossens, Hanne"]
[Black "Andersson, Christin"]
[Result "0-1"]
[ECO "C05"]
[WhiteElo "2184"]
[BlackElo "2028"]
[Annotator "TA"]
[PlyCount "122"]
[EventDate "2022.05.25"]
[EventType "tourn"]
[EventCountry "DEN"]
[SourceTitle "playchess.com"]
[Source "ChessBase"]
[SourceQuality "1"]
[TimeControl "40/5400+30:1800+30"]

{[%evp 19,122,58,65,37,47,42,112,104,88,107,299,84,75,74,77,97,73,9,8,-8,0,0,0,0,0,0,0,0,0,0,0,-26,-39,-35,0,-25,83,83,81,88,107,87,95,79,107,89,100,92,91,0,0,-65,-72,-72,-64,-67,-69,-67,-43,-104,-89,-132,-87,-125,-98,-278,-270,-231,-178,-151,-18,-552,-552,-1222,-1235,-1187,-1160,-1150,-341,-503,-489,-1159,-1182,-1120,-976,-829,-700,-881,-1324,-6613,-6535,-6070,-5887,-5057,-4166,-29974,-29975,-29976,-29977,-29981,-29982,-29986,-29983,-29983,-29984]} 1. e4 {[%emt 0:00:07]} e6 {[%emt 0:00:05]} 2. d4 {[%emt 0:00:49]} d5 {[%emt 0:00:04]} 3. Nd2 {[%emt 0:01:01]} Nf6 {[%emt 0:00:47]} 4. e5 {[%emt 0:00:02]} Nfd7 {[%emt 0:00:00]} 5. Bd3 {[%emt 0:00:32]} c5 {[%emt 0:00:09]} 6. c3 {[%emt 0:00:30]} Nc6 {[%emt 0:00:57]} 7. Ne2 {[%emt 0:01:01]} Qb6 {[%emt 0:03:10]} 8. Nf3 {[%emt 0:00:35]} f6 {[%emt 0:01:49]} 9. exf6 {[%emt 0:03:52]} Nxf6 {[%emt 0:00:05]} 10. O-O {[%emt 0:03:40]} Bd6 {[%emt 0:02:58]} 11. Bf4 {[%emt 0:05:29] C06: French Tarrasch: 3...Nf6 4 e5 Nfd7 5 Bd3 main lines.} Bxf4 {[%emt 0:01:38]} 12. Nxf4 {[%emt 0:00:05]} c4 {[%emt 0:01:41]} (12... O-O $14) 13. Bc2 $1 $16 {[%emt 0:01:41] White is better.} Qxb2 {[%emt 0:05:08] [#]} 14. Qe2 $146 {[%emt 0:18:28][%cal Oc2g6]} ({Predecessor:} 14. Qd2 Qb6 15. Rae1 O-O 16. Ng5 Nd8 17. Re3 Nf7 18. Ngxe6 Bxe6 19. Rxe6 Qa5 20. Rfe1 Ng5 21. R6e5 Nge4 22. Bxe4 Nxe4 23. R1xe4 {1-0 (23) Szikszai,B (2133)-Thierry,E (1718) Eger 2021}) 14... Ne4 $2 {[%emt 0:00:55] [#]} (14... Qxc3 $2 15. Nxe6 Kf7 16. Nfg5+ Kg8 17. Nc7 $18) (14... Qa3 $16) 15. Rfb1 $2 {[%emt 0:05:10]} (15. Ng5 $1 $18 {[%mdl 512] is the precise move to win.}) 15... Qxc3 {[%emt 0:01:49]} 16. Bxe4 {[%emt 0:00:14]} dxe4 {[%emt 0:00:22]} 17. Qxe4 {[%emt 0:00:07]} O-O {[%emt 0:04:47]} 18. Ng5 {[%emt 0:04:01]} (18. Nxe6 $16 Bxe6 19. Rc1 (19. Qxe6+ Kh8 $14)) 18... Rf5 $11 {[%emt 0:04:15]} 19. Nf3 {[%emt 0:11:43]} Bd7 {[%emt 0:02:21]} 20. Nxe6 {[%emt 0:07:24]} Qd3 {[%emt 0:03:21]} 21. Qxd3 {[%emt 0:01:14]} cxd3 {[%emt 0:00:06]} 22. Nc5 $36 {[%emt 0:12:24][%cal Be6c5,Bc5d7,Bd7e5,Be5d3][%mdl 2080] Black is under pressure. Pair of Knights!} Nxd4 {[%emt 0:01:01]} 23. Nxd7 {[%emt 0:01:46]} Nc2 {[%emt 0:00:07]} 24. Nde5 $1 {[%emt 0:00:32][%cal Oe5d3]} (24. Nh4 $2 Rd5 25. Nf3 Nxa1 $19) 24... Rd8 {[%emt 0:04:05] aiming for ...d2.} 25. Rd1 {[%emt 0:04:06]} Nxa1 {[%emt 0:00:12]} 26. Rxa1 {[%emt 0:00:02]} b5 {[%emt 0:04:21]} (26... d2 $5 27. Rd1 Rf4 $11) 27. Rd1 {[%emt 0:01:18]} Rd5 {[%emt 0:02:23]} (27... d2 $1 $11 {keeps the balance.}) 28. Nxd3 $16 {[%emt 0:00:56]} a5 {[%emt 0:00:50]} 29. Kf1 {[%emt 0:00:25]} Rf6 {[%emt 0:01:36]} 30. Ke2 {[%emt 0:01:24]} Re6+ {[%emt 0:01:18]} 31. Kd2 $1 {[%emt 0:00:21]} b4 {[%emt 0:01:37]} 32. Rc1 {[%emt 0:01:58]} h6 {[%emt 0:01:27]} 33. Rc7 {[%emt 0:01:02]} Rg6 {[%emt 0:01:17]} 34. g3 {[%emt 0:01:31]} (34. Nfe1 $16) 34... Rf6 $11 {[%emt 0:01:23]} 35. Ke3 {[%emt 0:03:37] [#]} (35. Rc8+ $11 Kh7 36. Nfe5 (36. Ke3 Rxd3+ 37. Kxd3 Rxf3+ 38. Ke2 Ra3 $17) 36... Rxf2+ 37. Ke3 Rxh2 38. Ke4) 35... Rxd3+ $1 $15 {[%emt 0:00:58]} 36. Kxd3 {[%emt 0:00:05]} Rxf3+ {[%emt 0:00:17][%mdl 4096] Endgame KR-KR} 37. Ke2 {[%emt 0:00:03]} Ra3 {[%emt 0:00:24]} 38. Rc2 {[%emt 0:00:05]} Kf7 {[%emt 0:01:11]} 39. h4 {[%emt 0:00:41]} ({White should try} 39. Kd1 $15) 39... Ke6 $17 {[%emt 0:00:34]} 40. Rd2 {[%emt 0:01:10]} Ke5 {[%emt 0:00:51]} 41. f3 {[%emt 0:32:08]} a4 {[%emt 0:31:55]} 42. Rb2 $2 {[%emt 0:00:47] [#]} (42. h5 $17) 42... b3 $1 $19 {[%emt 0:00:36]} 43. axb3 {[%emt 0:00:12]} ({Wrong is} 43. f4+ $2 Kd4 44. axb3 (44. Rd2+ $2 Ke4 $19) 44... axb3 $19) 43... Rxb3 {[%emt 0:00:45]} 44. Rd2 Rb6 {[%emt 0:01:35]} (44... g6 $17 {And now ...a3 would win.} 45. Rd8 a3) 45. Rd7 $2 {[%emt 0:03:53][%mdl 8192] [#]} (45. Ra2 $11 {and White has nothing to worry.}) 45... Ra6 $1 {[%emt 0:00:43] White must now prevent ...a3.} 46. f4+ {[%emt 0:02:52]} Kf6 {[%emt 0:01:17]} 47. Rd2 {[%emt 0:01:12]} a3 {[%emt 0:00:17]} 48. Ra2 {[%emt 0:00:05]} Ra4 $2 {[%emt 0:00:57]} (48... h5 49. Ke3 Ra8) 49. Kf3 {[%emt 0:00:17]} (49. h5 {is a better defense.} Kf5 50. Kf3) 49... h5 {[%emt 0:00:44] Strongly threatening ...Ke6.} 50. Kf2 {[%emt 0:00:09]} (50. g4 $142 hxg4+ 51. Kxg4) 50... Ke6 {[%emt 0:00:53]} 51. Ke3 {[%emt 0:00:08]} Kd5 {[%emt 0:00:31]} 52. Kd3 {[%emt 0:01:03]} Ra7 {[%emt 0:00:55]} 53. f5 {[%emt 0:01:47]} Ke5 {[%emt 0:00:34]} 54. Ke3 {[%emt 0:00:22]} Kxf5 {[%emt 0:00:22] Threatens to win with ...Ra5.} 55. Kf3 {[%emt 0:00:06]} Ra4 {[%emt 0:00:36]} 56. Ke3 {[%emt 0:01:01]} Ke5 {[%emt 0:00:17]} 57. Kf3 {[%emt 0:00:24]} Kd5 {[%emt 0:00:43] Black mates.} 58. Ke3 {[%emt 0:01:06]} Kc4 {[%emt 0:00:28]} 59. Kd2 {[%emt 0:00:25]} Kb3 {[%emt 0:00:22]} 60. Rc2 {[%emt 0:00:11]} a2 {[%emt 0:00:22]} 61. Rc3+ {[%emt 0:00:24]} Kb4 {[%emt 0:00:14] Weighted Error Value: White=0.85/Black=0.45} 0-1

[Event "Fredericia WIM 2022"]
[Site "Fredericia"]
[Date "2022.05.29"]
[Round "9.3"]
[White "Andersson, Christin"]
[Black "Goossens, Hanne"]
[Result "*"]
[ECO "C05"]
[WhiteElo "2028"]
[BlackElo "2184"]
[Annotator "TA"]
[PlyCount "28"]
[EventDate "2022.05.25"]
[EventType "tourn"]
[EventCountry "DEN"]
[SourceTitle "playchess.com"]
[Source "ChessBase"]
[SourceQuality "1"]
[TimeControl "40/5400+30:1800+30"]

{[%evp 19,28,56,69,39,47,31,100,102,114,108,306]} 1. e4 {[%emt 0:00:07]} e6 {[%emt 0:00:05]} 2. d4 {[%emt 0:00:49]} d5 {[%emt 0:00:04]} 3. Nd2 {[%emt 0:01:01]} Nf6 {[%emt 0:00:47]} 4. e5 {[%emt 0:00:02]} Nfd7 {[%emt 0:00:00]} 5. Bd3 {[%emt 0:00:32]} c5 {[%emt 0:00:09]} 6. c3 {[%emt 0:00:30]} Nc6 {[%emt 0:00:57]} 7. Ne2 {[%emt 0:01:01]} Qb6 {[%emt 0:03:10]} 8. Nf3 {[%emt 0:00:35]} f6 {[%emt 0:01:49]} 9. exf6 {[%emt 0:03:52]} Nxf6 {[%emt 0:00:05]} 10. O-O {[%emt 0:03:40]} Bd6 {[%emt 0:02:58]} 11. Bf4 {[%emt 0:05:29] C06: French Tarrasch: 3...Nf6 4 e5 Nfd7 5 Bd3 main lines.} Bxf4 {[%emt 0:01:38]} 12. Nxf4 {[%emt 0:00:05]} c4 {[%emt 0:01:41] [#]} (12... O-O $14) 13. Bc2 $1 $16 {[%emt 0:01:41] Strongly threatening Ng5. White is more active.} Qxb2 {[%emt 0:05:08] [#]} 14. Qe2 $146 {[%emt 0:18:28][%cal Oc2g6] aiming for Bg6+!} ({Predecessor:} 14. Qd2 Qb6 15. Rae1 O-O 16. Ng5 Nd8 17. Re3 Nf7 18. Ngxe6 Bxe6 19. Rxe6 Qa5 20. Rfe1 Ng5 21. R6e5 Nge4 22. Bxe4 Nxe4 23. R1xe4 {1-0 (23) Szikszai,B (2133)-Thierry,E (1718) Eger 2021}) 14... Ne4 $2 {[%emt 0:00:55] Black got outplayed after the opening.  Weighted Error Value: White=0.07 (flawless) /Black=0.26 (precise)} (14... Qxc3 $2 15. Nxe6 Kf7 16. Nfg5+ Kg8 17. Nc7 $18) (14... Qa3 $16) *

[Event "Fredericia WIM 2022"]
[Site "Fredericia"]
[Date "2022.05.29"]
[Round "10.1"]
[White "Doluhanova, Evgeniya"]
[Black "Goossens, Hanne"]
[Result "1-0"]
[ECO "B30"]
[WhiteElo "2270"]
[BlackElo "2184"]
[Annotator "TA"]
[PlyCount "119"]
[EventDate "2022.05.25"]
[EventType "tourn"]
[EventCountry "DEN"]
[SourceTitle "playchess.com"]
[Source "ChessBase"]
[SourceQuality "1"]
[TimeControl "40/5400+30:1800+30"]

{[%evp 9,119,35,47,16,15,22,14,16,110,123,126,27,57,39,62,33,31,0,0,0,0,0,6,0,0,0,-15,-12,0,-44,-47,-48,-50,-48,-45,-153,0,0,0,0,0,0,176,162,176,0,118,8,8,22,12,0,278,272,275,273,325,320,391,359,12834,710,1461,287,273,0,1061,573,527,8,9,0,489,53,2004,53,75,0,1669,887,995,1013,1131,1026,7830,6222,12838,12839,12839,12839,29977,29978,12843,12843,12843,12844,29986,29987,29987,29986,29986,29987,29985,29985,29985,12845,29988,12846,12846,12846,12846,12846]} 1. e4 {[%emt 0:03:41]} c5 {[%emt 0:00:06]} 2. Nf3 {[%emt 0:04:08]} Nc6 {[%emt 0:00:07]} 3. Bb5 {[%emt 0:00:17]} e5 {[%emt 0:00:24]} 4. O-O {[%emt 0:01:03]} Bd6 {[%emt 0:00:22]} 5. c3 {[%emt 0:00:39]} a6 {[%emt 0:00:42]} 6. Bc4 {[%emt 0:02:08] B30: Sicilian: 2...Nc6 3 Bb5, lines without ...g6.} Nf6 {[%emt 0:01:04]} 7. d4 {[%emt 0:00:30]} cxd4 {[%emt 0:02:54]} (7... Nxe4 $2 8. dxe5 Nxe5 9. Nxe5 Bxe5 10. Qd5 Bxh2+ 11. Kxh2 $18) 8. cxd4 {[%emt 0:00:10] [#] The position is equal.} Nxd4 $146 {[%emt 0:01:44]} (8... exd4 $11 9. Re1 Qc7) ({Predecessor:} 8... exd4 9. e5 Bxe5 10. Nxe5 Nxe5 11. Re1 O-O 12. Rxe5 Qc7 13. Bf4 Qxc4 14. Na3 Qb4 {0-1 (48) Baloha,M (2178)-Pavlov,S (2491) Mukachevo 2018}) 9. Nxd4 $16 {[%emt 0:00:49]} exd4 {[%emt 0:00:50]} 10. Re1 {[%emt 0:10:10]} (10. Qxd4 $6 Qc7 $11) ({White should play} 10. e5 $1 $16 {[%cal Re5d6]} Bxe5 11. Re1 (11. f4 Bc7 $17)) 10... Qc7 {[%emt 0:03:59]} 11. e5 $1 {[%emt 0:00:41]} Bxe5 {[%emt 0:07:18]} (11... Qxc4 $2 12. exf6+ Kd8 13. fxg7 $18) 12. f4 $1 {[%emt 0:02:28][%mdl 64] Pin. White is more active.} (12. Qxd4 $6 d6 13. f4 Be6 14. fxe5 dxe5 15. Qxe5 (15. Rxe5 Rd8 $17) 15... Qxc4 $11) 12... Qxc4 {[%emt 0:01:02]} 13. Rxe5+ {[%emt 0:00:05]} Kf8 $1 {[%emt 0:07:58]} 14. b3 {[%emt 0:01:06]} Qc6 {[%emt 0:00:47]} 15. Ba3+ {[%emt 0:00:46]} Kg8 {[%emt 0:01:04]} 16. Qxd4 {[%emt 0:00:36]} d6 $1 {[%emt 0:23:51]} 17. Re7 {[%emt 0:21:31]} Be6 {[%emt 0:01:53]} 18. Nc3 {[%emt 0:00:38]} Rd8 {[%emt 0:04:46] aiming for ...Kf8.} 19. Qb4 {[%emt 0:12:33]} b5 {[%emt 0:28:28]} 20. Qa5 {[%emt 0:03:22]} Rc8 {[%emt 0:02:28]} 21. Rc1 {[%emt 0:00:16][%cal Oc3b5] Hoping for Nxb5!} h6 {[%emt 0:02:58]} 22. Ra7 {[%emt 0:00:36]} (22. Nd1 $15 Qa8 23. Rxc8+ Qxc8 24. Qd2) 22... Bh3 $2 {[%emt 0:02:01]} 23. gxh3 $11 {[%emt 0:02:19][%cal Oc3b5]} Qf3 {[%emt 0:00:12][%csl LRf4,LRh3]} 24. Re7 {[%emt 0:02:56] Inhibits Qe3+. Black must now prevent Ne2.} (24. Qxa6 $2 Rxc3 25. Rxc3 Qxc3 26. Ra8+ (26. Qb7 $2 Qa1+ 27. Kg2 Qxa2+ 28. Kg1 Qb1+ 29. Kf2 Qc2+ 30. Kf3 Kh7 $19) 26... Kh7 27. Rxh8+ Kxh8 28. Qxb5 Qe3+ 29. Kg2 Qe4+ 30. Kg1 Qe3+ 31. Kg2 Qe4+ 32. Kg1 Qe3+ $17) 24... Qxh3 {[%emt 0:03:01] ...Kh7 is the strong threat.} 25. Re2 {[%emt 0:08:29]} (25. Qxa6 Rxc3 26. Rxc3 Qxc3 27. Qxb5 Qd4+ 28. Kg2 Nd5 29. Re8+ Kh7 30. Rxh8+ Kxh8 31. Qe8+ Kh7 $17) 25... Qg4+ $2 {[%emt 0:00:42]} (25... Kh7 $11 {and Black stays safe.} 26. Qxa6 (26. Bxd6 $2 Nd5 $19) 26... Rxc3 27. Rxc3 Qxc3 28. Qxb5 Qd4+ 29. Kg2 d5) 26. Rg2 $18 {[%emt 0:00:25]} Qxf4 {[%emt 0:00:06]} 27. Qb6 $2 {[%emt 0:02:31]} (27. Qxa6 Qe3+ 28. Rf2 Rxc3 29. Rxc3 Qxc3 30. Qxb5 (30. Qxd6 $2 Qe1+ 31. Rf1 Qe3+ 32. Kh1 Qe4+ 33. Kg1 Kh7 $19) 30... Qe1+ 31. Qf1 Qe6 $17) (27. Bb2 $18) 27... Rc5 {[%emt 0:00:10]} (27... Nd5 $1 $11 28. Qxa6 (28. Nxd5 $2 Rxc1+ 29. Bxc1 Qxc1+ 30. Kf2 Qd2+ 31. Kf1 Qd1+ 32. Kf2 Qd2+ 33. Kg3 Qg5+ 34. Kh3 Qh5+ 35. Kg3 Qg5+ 36. Kh3 Qh5+ 37. Kg3 Qg5+ $19) 28... Rxc3 29. Rxc3 Qd4+ 30. Rf2 Nxc3 31. Qc8+ Kh7 32. Qf5+ Kg8) 28. Rf1 {[%emt 0:09:59]} (28. Qxa6 b4 29. Ne2 (29. Qa8+ $2 Kh7 $19) 29... Qe3+ 30. Kh1 bxa3 $17) (28. Kh1 $16) 28... Qe3+ $11 {[%emt 0:00:08]} 29. Kh1 {[%emt 0:00:13] The board is on fire.} Rxc3 {[%emt 0:00:42]} 30. Qxd6 {[%emt 0:00:37]} Nh5 $2 {[%emt 0:02:20][%mdl 8192]} (30... Ne8 $1 $11 {and Black has nothing to worry.} 31. Qf8+ Kh7 32. Qxf7 Qe4) 31. Qf8+ $1 $18 {[%emt 0:01:36]} Kh7 {[%emt 0:00:04]} 32. Qxf7 {[%emt 0:00:07]} Qe8 {[%emt 0:00:57]} 33. Qf5+ {[%emt 0:01:05]} Kg8 {[%emt 0:00:17]} 34. Bc5 {[%emt 0:05:14] Against Re3} Qc6 $2 {[%emt 0:01:05]} (34... a5 35. a4 b4) 35. b4 {[%emt 0:02:32]} (35. Qxh5 $142 Rg3 36. hxg3) 35... Qe8 {[%emt 0:00:55]} 36. Qd5+ $2 {[%emt 0:00:48]} (36. Bd4 Rc7 37. Kg1 Qf7 $18) (36. Rg6) 36... Kh7 {[%emt 0:00:08]} 37. Qf5+ $2 $40 {[%emt 0:00:02][%mdl 128] White attacks.} (37. Rf7 Rc1+ 38. Bg1) 37... Kg8 $1 {[%emt 0:00:03]} (37... g6 38. Qf7+ Ng7 39. Bd4 Qxf7 40. Rxf7 Rc1+ 41. Rg1 Rxg1+ 42. Kxg1 $14) 38. a3 {[%emt 0:00:33] Strongly threatening Rg6.} ({Less strong is} 38. Bd4 Rc7 39. Kg1 Rd7 $18) 38... Rc4 {[%emt 0:00:25]} 39. Qd5+ {[%emt 0:01:23]} ({Only move:} 39. Rfg1 $18 {[%cal Of5h5] Threatening mate with Qxh5!} Rh7 40. Qd5+ (40. Rf1 g5 $11) 40... Kh8 41. Re2 $3 {[%mdl 512]}) 39... Kh7 $11 {[%emt 0:00:05]} 40. Qf5+ {[%emt 0:00:31][%mdl 8192]} (40. Rf7 $11 Rf4 41. Rgxg7+ $1 Nxg7 42. Rxf4) 40... Kg8 $18 {[%emt 0:00:04]} 41. Kg1 $2 {[%emt 0:30:32]} (41. Rfg1 $18 {[%cal Of5h5] White wants to mate with Qxh5!} Rh7 42. Qd5+ (42. Rf1 g5 $11) 42... Kh8 {[#]} 43. Re2 $3 {[%mdl 512]}) 41... Rc3 $2 {[%emt 0:30:10][%mdl 8192]} (41... Re4 $14) 42. Qd5+ $2 {[%emt 0:00:25]} (42. Rg6 $18 Re3 43. Bxe3 Qxe3+ 44. Kh1) 42... Kh7 $14 {[%emt 0:00:06]} 43. Qf5+ $2 {[%emt 0:00:35][%mdl 8192]} (43. Bd4 $16 Rc4 44. Qf5+ g6 45. Qd5) 43... Kg8 $18 {[%emt 0:00:04] Black is now going downhill.} 44. Qb1 {[%emt 0:00:30]} Rxc5 {[%emt 0:02:42]} 45. bxc5 {[%emt 0:00:04]} Qe3+ {[%emt 0:00:08]} 46. Kh1 {[%emt 0:00:51] Intending Qf5 and mate.} Nf4 {[%emt 0:00:28]} 47. Qa2+ {[%emt 0:00:20]} Kh7 {[%emt 0:00:20]} 48. Qc2+ {[%emt 0:00:06]} Kg8 {[%emt 0:01:23]} 49. Rgf2 {[%emt 0:00:36]} g5 {[%emt 0:00:35] [#]} 50. Rxf4 $1 {[%emt 0:00:50][%mdl 512]} gxf4 {[%emt 0:00:11] KQR-KQR} 51. Qg6+ {[%emt 0:00:19]} Kf8 {[%emt 0:00:07]} 52. Qf6+ {[%emt 0:00:04]} Ke8 {[%emt 0:00:31]} 53. Qxh8+ {[%emt 0:00:06]} Ke7 {[%emt 0:00:20]} 54. Qg7+ {[%emt 0:00:32]} Ke8 {[%emt 0:00:06]} 55. Qg6+ {[%emt 0:00:11]} Ke7 {[%emt 0:00:08]} 56. Qd6+ {[%emt 0:00:09]} Ke8 {[%emt 0:00:06]} 57. Qxf4 {[%emt 0:00:45]} (57. Rxf4 $142 Qe1+ 58. Kg2 Qe2+ 59. Rf2 Qg4+ 60. Kf1 Qc4+ 61. Re2+ Kf7 62. c6) 57... Qxc5 {[%emt 0:00:07]} 58. Qf7+ {[%emt 0:00:49]} (58. Qb8+ $142 Kd7 59. Rf7+ Ke6 60. Qe8+ Kd5 61. Rf5+ Kd4 62. Qh8+ Kc4 63. Qg8+ Kc3 64. Rxc5+ Kd4 65. Qd5+ Ke3 66. Rc3+ Ke2 67. Qg2+ Kd1 68. Rc2 h5 69. Qe2#) 58... Kd8 {[%emt 0:00:06]} 59. Rd1+ {[%emt 0:00:43]} Kc8 {[%emt 0:00:05]} 60. Qe6+ {[%emt 0:00:07] Weighted Error Value: White=1.15/Black=0.76} 1-0

[Event "Fredericia WIM 2022"]
[Site "Fredericia"]
[Date "2022.05.29"]
[Round "10.2"]
[White "Andersson, Christin"]
[Black "Dwilewicz, Katarzyna"]
[Result "1/2-1/2"]
[ECO "B47"]
[WhiteElo "2028"]
[BlackElo "2079"]
[Annotator "TA"]
[PlyCount "133"]
[EventDate "2022.05.25"]
[EventType "tourn"]
[EventCountry "DEN"]
[SourceTitle "playchess.com"]
[Source "ChessBase"]
[SourceQuality "1"]
[TimeControl "40/5400+30:1800+30"]

{[%evp 11,133,27,45,11,16,9,4,0,8,0,9,0,0,0,1,-24,-20,-34,84,70,102,97,110,101,126,126,139,143,131,87,89,93,91,93,100,94,95,90,85,73,66,72,62,66,65,69,67,66,55,66,55,21,51,51,68,47,55,20,32,23,62,63,63,63,57,58,63,63,63,63,63,63,63,63,63,63,63,63,63,38,63,33,33,6,6,0,33,0,62,28,43,43,62,33,33,6,6,0,6,6,6,0,0,0,7,0,0,0,28,28,28,28,28,28,28,28,28,28,28,28,28,28,28,0]} 1. e4 {[%emt 0:00:04]} c5 {[%emt 0:00:08]} 2. Nf3 {[%emt 0:00:04]} e6 {[%emt 0:00:04]} 3. d4 {[%emt 0:00:17]} cxd4 {[%emt 0:00:06]} 4. Nxd4 {[%emt 0:00:06]} Nc6 {[%emt 0:00:04]} 5. Nc3 {[%emt 0:00:49]} Qc7 {[%emt 0:00:06]} 6. a3 {[%emt 0:02:15]} a6 {[%emt 0:00:44]} 7. Nxc6 {[%emt 0:00:54] B46: Sicilian: Taimanov: 5 Nc3 a6.} bxc6 {[%emt 0:06:09]} 8. Qf3 {[%emt 0:01:23]} Nf6 {[%emt 0:01:35]} 9. Bd3 {[%emt 0:03:06] The position is equal.} Be7 {[%emt 0:03:15] [#]} 10. O-O $146 {[%emt 0:01:16]} ({Predecessor:} 10. Na4 d6 11. O-O O-O 12. Bd2 Bd7 13. b4 e5 14. h3 d5 15. Nc5 Bxc5 16. bxc5 {0-1 (72) Brambilla,A (1374)-Maggioni,O (1550) Bergamo 2006}) 10... d5 {[%emt 0:06:06]} 11. Bf4 {[%emt 0:01:28]} e5 {[%emt 0:01:24]} 12. Bg5 $36 {[%emt 0:05:50][%mdl 2048] Strongly threatening Bxf6. White has the initiative.} d4 {[%emt 0:07:49]} 13. Bxf6 {[%emt 0:00:13]} Bxf6 {[%emt 0:00:29]} 14. Ne2 {[%emt 0:01:26][%cal Bc3e2,Be2d4,Bd4f5][%mdl 32]} Qe7 {[%emt 0:05:54] [#]} (14... Rb8 $15 {stays ahead.}) 15. Nxd4 $1 $16 {[%emt 0:01:36]} Qc7 {[%emt 0:26:56]} (15... exd4 16. e5) 16. Nf5 {[%emt 0:00:35]} g6 {[%emt 0:01:13]} 17. Ne3 {[%emt 0:00:45]} Bg7 {[%emt 0:00:26]} 18. Rad1 {[%emt 0:00:54]} O-O {[%emt 0:00:16]} 19. Bc4 {[%emt 0:01:19]} Rb8 {[%emt 0:02:17]} 20. Bb3 {[%emt 0:01:09]} a5 {[%emt 0:01:53]} 21. Qe2 {[%emt 0:01:38] White is much more active.} Qa7 {[%emt 0:05:58]} ({Less strong is} 21... a4 22. Bxa4 Be6 23. Nc4) 22. a4 {[%emt 0:00:35]} Rb4 {[%emt 0:01:30]} 23. Qf3 {[%emt 0:03:11]} Qe7 {[%emt 0:04:17]} 24. Rfe1 {[%emt 0:02:56]} h5 {[%emt 0:00:36]} 25. h3 {[%emt 0:01:38]} Ba6 {[%emt 0:02:54]} 26. Nf1 {[%emt 0:01:06]} Bh6 {[%emt 0:02:27]} 27. Qc3 {[%emt 0:00:51]} Rc8 {[%emt 0:03:10]} 28. Nd2 {[%emt 0:01:41]} Kh7 {[%emt 0:08:04]} 29. Nc4 {[%emt 0:02:05]} Bxc4 {[%emt 0:00:43]} 30. Bxc4 {[%emt 0:00:17]} Rxa4 {[%emt 0:00:15]} 31. Ra1 {[%emt 0:01:30]} Rxa1 {[%emt 0:06:35]} 32. Rxa1 {[%emt 0:00:05]} Rd8 {[%emt 0:01:25]} 33. Qxa5 {[%emt 0:00:57][%cal Oc4f7]} Rd2 {[%emt 0:01:01]} 34. Qc3 {[%emt 0:01:41]} Qc5 {[%emt 0:00:34]} 35. Rf1 {[%emt 0:05:26]} Rxf2 {[%emt 0:00:36]} 36. Rxf2 {[%emt 0:00:47]} Be3 {[%emt 0:00:04] [#]} 37. Bxf7 $1 {[%emt 0:01:07]} Bxf2+ {[%emt 0:00:08]} 38. Kf1 $1 {[%emt 0:00:58]} Qxc3 {[%emt 0:00:56]} 39. bxc3 $14 {[%emt 0:00:05][%mdl 4096] Endgame KB-KB} Be3 {[%emt 0:00:49]} 40. Ke2 {[%emt 0:00:25]} Bg1 {[%emt 0:00:09]} 41. Kd3 {[%emt 0:30:35]} Kg7 {[%emt 0:30:14]} 42. Be8 {[%emt 0:01:56]} c5 {[%emt 0:00:08]} 43. Kc4 {[%emt 0:02:12]} Kf6 {[%emt 0:00:28]} 44. Kd5 {[%emt 0:00:31]} h4 {[%emt 0:00:54]} 45. Kc4 {[%emt 0:06:46]} Bf2 {[%emt 0:00:19]} 46. Kd3 {[%emt 0:00:24]} Be1 {[%emt 0:00:58]} 47. Bd7 {[%emt 0:00:54]} Kg5 {[%emt 0:00:42]} 48. Be8 {[%emt 0:02:32]} Kf6 {[%emt 0:00:39]} 49. Kc4 {[%emt 0:00:53]} Bf2 $1 {[%emt 0:00:08]} 50. Bd7 {[%emt 0:02:10]} Ke7 {[%emt 0:00:32]} 51. Bg4 {[%emt 0:00:54]} Kf6 {[%emt 0:00:42]} 52. Kd3 {[%emt 0:00:31]} Be1 {[%emt 0:00:22]} 53. Bc8 {[%emt 0:01:59]} Kg5 {[%emt 0:00:20]} 54. Bg4 {[%emt 0:03:05]} Kf4 {[%emt 0:01:07]} 55. Bf3 {[%emt 0:01:09]} g5 {[%emt 0:00:30]} 56. Bg4 {[%emt 0:01:16]} Kg3 {[%emt 0:00:30]} 57. Bf5 {[%emt 0:01:54]} Kf4 {[%emt 0:00:38]} 58. Be6 {[%emt 0:00:57]} Kg3 {[%emt 0:00:16]} 59. Kc4 {[%emt 0:00:59]} Bf2 {[%emt 0:00:30]} 60. Kd5 {[%emt 0:01:37] White has an edge.} Kf4 {[%emt 0:00:05]} 61. Bf5 {[%emt 0:01:18]} Be3 {[%emt 0:00:44]} 62. Bg4 {[%emt 0:00:54]} Bg1 {[%emt 0:00:30]} 63. Bf3 {[%emt 0:00:42]} Be3 {[%emt 0:00:27]} 64. Be2 {[%emt 0:01:00]} Bg1 {[%emt 0:00:31]} 65. Bg4 {[%emt 0:01:44]} Be3 {[%emt 0:00:14]} 66. Bf3 {[%emt 0:00:35]} Bg1 {[%emt 0:00:25]} 67. Bg4 {[%emt 0:01:41] Weighted Error Value: White=0.09 (flawless) /Black=0.10 (very precise)} 1/2-1/2